bitfinex/quotes_ETHUSD_20260131
["timestamp","ask_amount","ask_price","bid_price","bid_amount"]
[1769850809826,12.9824871,2650.2,2649.4,0.38706]
[1769850810252,0.001,2650.2,2649.4,12.87899648]
[1769850815134,0.001,2650.2,2649.6,12.49193648]
[1769850815318,0.001,2650.2,2649.7,16.36143648]
[1769850815524,0.001,2650.2,2649.8,1.63614365]
[1769850816377,0.001,2650.6,2649.9,12.49093648]
[1769850817458,0.001,2650.2,2649.9,12.49093648]
[1769850817676,0.001,2650.6,2650.0,12.48993648]
[1769850820392,0.001,2650.6,2649.8,16.35943648]
[1769850820586,0.001,2650.6,2649.9,1.63594365]
[1769850821787,13.86273785,2650.5,2649.9,1.63594365]
[1769850821988,14.28178278,2650.5,2649.4,0.38706]
[1769850822389,13.86273785,2650.5,2649.4,0.38706]
[1769850824393,13.86273785,2650.5,2649.2,12.49103648]
[1769850827114,13.86273785,2650.5,2649.3,3.8695]
[1769850827286,13.86273785,2650.5,2649.3,16.35943648]
[1769850828010,13.86273785,2650.5,2649.4,12.48993648]
[1769850828901,13.86273785,2650.5,2649.3,3.8695]
[1769850830005,13.86273785,2650.3,2649.4,3.8695]
[1769850830308,13.86273785,2650.1,2649.2,0.0011]
[1769850831316,13.86273785,2650.1,2649.3,0.0011]
[1769850831528,13.86273785,2650.2,2649.3,0.0011]
[1769850833725,0.001,2650.3,2649.3,12.49213648]
[1769850834083,13.86373785,2650.3,2649.3,12.49213648]
[1769850834314,0.001,2650.3,2649.3,12.49213648]
[1769850835916,0.001,2650.3,2649.4,3.8695]
[1769850836120,0.001,2650.3,2649.5,1.63616365]
[1769850836683,13.86373785,2650.3,2649.5,1.63616365]
[1769850837510,13.86182785,2650.3,2649.5,1.63616365]
[1769850839611,13.86273785,2651.0,2649.5,1.63616365]
[1769850839819,13.86273785,2651.0,2649.4,16.36144648]
[1769850841338,13.86273785,2650.8,2649.4,3.8695]
[1769850841694,14.28178278,2650.8,2649.4,3.8695]
[1769850842019,14.28178278,2650.8,2649.5,3.8695]
[1769850842392,13.86273785,2650.8,2649.5,3.8695]
[1769850843096,13.86273785,2651.1,2649.5,3.8695]
[1769850843293,13.86273785,2651.1,2649.6,3.8695]
[1769850844113,13.86273785,2650.5,2649.6,3.8695]
[1769850844322,13.86273785,2650.5,2649.7,3.8695]
[1769850847725,13.86273785,2650.5,2649.8,3.8695]
[1769850847925,13.86273785,2650.5,2649.8,4.25645]
[1769850853617,13.86273785,2650.5,2649.8,0.38695]
[1769850853818,13.86273785,2650.5,2649.5,3.8695]
[1769850856445,0.001,2650.6,2649.7,12.49194648]
[1769850856623,0.001,2650.6,2649.9,0.0011]
[1769850856819,0.001,2650.6,2649.9,12.49304648]
[1769850858540,12.75096235,2650.5,2649.9,0.0011]
[1769850861828,0.001,2650.6,2649.9,0.0011]
[1769850863541,12.75196235,2650.6,2649.9,0.0011]
[1769850865260,12.75196235,2650.6,2649.9,3.8706]
[1769850869468,12.75196235,2650.6,2650.1,0.0011]
[1769850870037,12.75196235,2650.6,2649.9,3.8706]
[1769850870248,12.75096235,2650.4,2649.9,3.8706]
[1769850870565,12.75196235,2650.6,2649.9,3.8706]
[1769850871064,12.75196235,2650.6,2649.9,0.0011]
[1769850872536,12.75096235,2650.4,2649.4,0.0011]
[1769850872762,12.75096235,2650.2,2649.4,0.0011]
[1769850874474,12.75096235,2650.0,2648.9,0.0011]
[1769850874771,12.75096235,2649.8,2648.9,0.0011]
[1769850875059,12.75096235,2649.6,2648.9,0.0011]
[1769850879140,10.25,2650.4,2648.9,0.0011]
[1769850879339,0.001,2650.6,2648.9,0.0011]
[1769850879340,13.98672559,2650.2,2648.9,0.0011]
[1769850879568,13.44018342,2650.0,2648.9,0.0011]
[1769850879799,13.44018342,2649.8,2648.9,0.0011]
[1769850880874,13.44018342,2649.8,2647.6,0.0011]
[1769850881073,13.44018342,2648.3,2647.6,0.0011]
[1769850881375,13.44018342,2649.0,2647.6,0.0011]
[1769850881571,13.44018342,2648.8,2647.6,0.0011]
[1769850886361,0.001,2649.6,2647.6,0.0011]
[1769850886362,13.44018342,2648.6,2647.6,0.0011]
[1769850890385,13.44018342,2648.6,2647.6,12.69626321]
[1769850891610,13.44018342,2648.6,2647.6,12.50126601]
[1769850893315,13.44018342,2648.6,2647.5,16.56626321]
[1769850893513,13.44018342,2648.6,2647.6,12.69516321]
[1769850894011,13.44018342,2648.6,2648.2,0.0011]
[1769850895388,13.44018342,2648.9,2648.2,0.0011]
[1769850895705,13.44018342,2648.8,2648.2,0.0011]
[1769850898018,0.81659201,2647.8,2646.9,0.0011]
[1769850898181,13.44018342,2648.6,2647.0,146.76376837]
[1769850898387,13.44018342,2648.4,2647.0,146.76376837]
[1769850898907,13.44018342,2648.2,2647.0,134.06860516]
[1769850899102,0.53010957,2648.1,2647.0,134.06860516]
[1769850899313,13.44018342,2648.0,2647.0,134.06860516]
[1769850899491,13.44018342,2647.8,2647.0,134.06860516]
[1769850900021,13.44018342,2648.1,2647.0,134.06860516]
[1769850902624,0.07244088,2648.5,2647.0,134.06860516]
[1769850902625,0.07244088,2648.5,2647.3,12.69626321]
[1769850902786,13.44018342,2648.8,2647.3,13.48826321]
[1769850905894,13.44018342,2648.8,2647.5,12.69626321]
[1769850906328,0.001,2648.4,2647.5,12.69626321]
[1769850906529,0.001,2648.4,2647.6,1.26962632]
[1769850907706,0.001,2648.4,2647.6,14.29853635]
[1769850909131,13.73608307,2648.4,2647.6,1.26962632]
[1769850909302,0.53010957,2648.3,2647.5,0.0011]
[1769850909502,0.53010957,2648.3,2647.5,0.7931]
[1769850909503,14.26519264,2648.3,2647.5,0.7931]
[1769850911924,13.73508307,2648.3,2647.5,0.7931]
[1769850914724,13.73508307,2648.1,2647.5,0.7931]
[1769850914930,14.26519264,2648.1,2647.5,0.7931]
[1769850915505,13.73508307,2647.9,2647.3,0.0011]
[1769850917435,14.26519264,2647.9,2647.3,0.0011]
[1769850917607,13.73508307,2647.7,2647.0,120.06860516]
[1769850917931,13.73508307,2647.5,2647.0,120.06860516]
[1769850918629,14.23187677,2648.1,2647.0,120.06860516]
[1769850918802,2.006,2648.0,2647.0,120.06860516]
[1769850918995,2.006,2648.0,2647.0,133.09751519]
[1769850919193,13.73508307,2648.1,2647.1,13.02891003]
[1769850919392,0.53010957,2648.3,2647.1,13.02891003]
[1769850919599,2.786848,2648.2,2647.1,13.02891003]
[1769850920133,13.73508307,2648.1,2647.0,120.06860516]
[1769850920504,14.26519264,2648.1,2647.0,120.06860516]
[1769850920734,13.73508307,2648.0,2647.0,120.06860516]
[1769850921238,14.26519264,2648.0,2647.0,120.06860516]
[1769850922534,13.73508307,2647.8,2647.0,120.06860516]
[1769850925131,0.53010957,2647.9,2647.0,120.06860516]
[1769850926611,0.53010957,2647.9,2647.1,13.02891003]
[1769850926815,14.26519264,2648.3,2647.1,13.02891003]
[1769850927021,2.682926,2648.2,2647.1,13.02891003]
[1769850928870,16.41800907,2648.2,2647.1,13.02891003]
[1769850929046,14.26519264,2648.2,2647.1,13.02891003]
[1769850929467,0.001,2647.8,2647.1,13.02891003]
[1769850933469,0.001,2647.8,2647.0,120.06860516]
[1769850933672,0.001,2647.8,2647.1,4.56558491]
[1769850935274,14.26619264,2647.8,2647.1,0.792]
[1769850935560,13.73508307,2647.6,2647.1,0.792]
[1769850937034,0.1024,2647.6,2647.1,13.98533382]
[1769850937263,0.1024,2647.6,2647.2,3.77358491]
[1769850938362,0.001,2647.8,2647.2,3.77358491]
[1769850939358,13.88192372,2647.6,2647.0,120.06860516]
[1769850939664,0.1024,2647.4,2647.0,120.06860516]
[1769850940035,0.1024,2647.4,2647.0,120.04871162]
[1769850940246,0.1024,2647.4,2647.0,120.01223639]
[1769850940431,0.1024,2647.4,2647.0,119.97907289]
[1769850940637,0.1024,2647.4,2647.0,119.94590539]
[1769850940938,0.1024,2647.4,2647.0,119.89282907]
[1769850941137,0.1024,2647.4,2647.0,119.86296914]
[1769850941360,0.1024,2647.4,2647.0,119.84969702]
[1769850941661,0.1034,2647.4,2647.0,117.83765217]
[1769850941867,0.1034,2647.4,2647.0,117.81110097]
[1769850942037,0.1034,2647.4,2647.0,117.78122781]
[1769850942234,0.1034,2647.4,2647.0,117.74803161]
[1769850942437,0.1034,2647.4,2647.0,117.71483141]
[1769850942666,0.1034,2647.4,2647.0,117.68162721]
[1769850942860,0.1034,2647.4,2647.0,117.65174001]
[1769850943160,0.1034,2647.4,2647.0,117.59859921]
[1769850943360,0.1034,2647.4,2647.0,117.58863417]
[1769850943564,0.001,2647.4,2647.0,117.58863417]
[1769850944062,12.97706219,2647.4,2647.0,117.58863417]
[1769850944266,0.1024,2647.3,2647.0,117.58863417]
[1769850945242,0.1024,2647.3,2647.0,118.38063417]
[1769850945443,0.1024,2647.3,2647.0,118.35901381]
[1769850945661,0.1024,2647.3,2647.0,118.32297509]
[1769850945850,0.1024,2647.3,2647.0,118.31392537]
[1769850947354,0.001,2647.8,2647.1,13.93388008]
[1769850953677,0.001,2647.6,2647.1,13.93388008]
[1769850960754,0.1024,2648.5,2647.3,13.93388008]
[1769850962054,0.001,2648.6,2647.5,13.93388008]
[1769850962247,0.001,2648.6,2647.7,13.93388008]
[1769850963291,13.07946219,2648.4,2647.6,0.792]
[1769850963453,13.46129513,2648.4,2647.6,0.792]
[1769850963951,13.07846219,2648.2,2647.0,117.52192537]
[1769850964281,0.001,2648.4,2647.1,0.792]
[1769850964282,13.07846219,2648.0,2647.1,0.792]
[1769850964478,0.1024,2647.8,2647.1,0.792]
[1769850965378,0.1024,2647.8,2647.3,0.0011]
[1769850965579,0.1024,2647.9,2647.3,0.0011]
[1769850965885,2.518962,2647.9,2647.3,0.0011]
[1769850966092,0.1024,2647.9,2647.3,0.0011]
[1769850970107,12.89962893,2647.8,2647.3,0.0011]
[1769850971910,12.89962893,2647.8,2647.3,0.7931]
[1769850972088,12.79722893,2647.8,2647.3,0.7931]
[1769850973128,12.89962893,2648.0,2647.3,0.7931]
[1769850973404,0.1024,2647.8,2647.3,0.7931]
[1769850974930,12.89962893,2647.7,2647.3,0.7931]
[1769850975215,12.79722893,2647.7,2647.3,0.7931]
[1769850975416,12.89962893,2647.6,2647.0,117.52192537]
[1769850975601,12.89962893,2647.6,2647.1,0.792]
[1769850976615,12.89962893,2647.4,2647.0,68.20528963]
[1769850976918,0.1024,2647.1,2647.0,68.20528963]
[1769850978104,12.89962893,2647.1,2647.0,68.20528963]
[1769850978515,12.89962893,2647.1,2647.0,53.22464176]
[1769850978716,12.89962893,2647.1,2647.0,53.20864176]
[1769850978887,12.89962893,2647.1,2647.0,53.17585176]
[1769850979283,12.89962893,2647.1,2647.0,43.21436176]
[1769850979488,12.89962893,2647.1,2647.0,18.7613869]
[1769850979787,0.1024,2647.0,2646.9,0.0011]
[1769850980106,15.86791193,2647.0,2645.9,0.792]
[1769850980312,12.89962893,2647.0,2646.2,14.068]
[1769850980617,0.1024,2646.4,2646.2,14.068]
[1769850982502,0.1024,2646.3,2645.9,0.792]
[1769850982703,0.1024,2646.3,2646.0,14.051778]
[1769850983392,12.89962893,2646.3,2646.0,14.051778]
[1769850984222,12.89962893,2646.3,2645.9,0.792]
[1769850984507,12.89962893,2646.3,2645.9,14.843778]
[1769850985227,0.1024,2646.4,2645.9,14.843778]
[1769850985522,12.89962893,2646.4,2645.9,14.051778]
[1769850985692,12.89962893,2646.4,2645.5,0.0011]
[1769850985693,12.89962893,2646.4,2646.0,10.18526509]
[1769850985890,0.1024,2646.3,2645.6,10.18526509]
[1769850986388,12.89962893,2646.3,2645.6,10.18526509]
[1769850989621,0.001,2646.2,2645.6,10.18526509]
[1769850990315,0.1024,2646.1,2645.6,10.18526509]
[1769850990504,12.89962893,2646.1,2645.5,0.0011]
[1769850990709,0.1024,2645.8,2645.0,967.60609948]
[1769850990891,12.89962893,2645.8,2645.1,10.18526509]
[1769850992220,12.89962893,2645.8,2645.0,967.60609948]
[1769850992601,0.1024,2645.2,2645.0,958.93176201]
[1769850992812,13.93629186,2645.1,2645.0,946.36122316]
[1769850993018,13.93629186,2645.1,2645.0,943.68874186]
[1769850993215,13.93629186,2645.1,2645.0,943.53659049]
[1769850993520,15.34442893,2645.1,2645.0,913.03641489]
[1769850993688,0.19749082,2645.7,2645.0,913.03641489]
[1769850993893,12.79722893,2646.0,2645.0,913.03641489]
[1769850994088,12.79722893,2645.5,2645.0,913.03641489]
[1769850994315,5.8038482,2645.4,2645.0,913.03641489]
[1769850994526,19.40051993,2645.3,2645.0,913.03641489]
[1769850994701,19.40051993,2645.2,2645.0,913.03450489]
[1769850994904,13.17644847,2645.2,2645.0,912.7314471]
[1769850995104,0.38379951,2645.1,2645.0,912.1814471]
[1769850995301,13.18102844,2645.1,2645.0,910.96640673]
[1769850995514,13.18102844,2645.1,2645.0,910.03065297]
[1769850995515,12.79722893,2645.1,2645.0,910.03065297]
[1769850995716,12.89962893,2645.1,2645.0,898.08548194]
[1769850995892,13.40842624,2645.1,2645.0,835.01083097]
[1769850996091,13.80808596,2645.1,2645.0,813.06139662]
[1769850996293,18.06460893,2645.1,2645.0,810.74514962]
[1769850996493,13.40229731,2645.1,2645.0,806.34046762]
[1769850996726,13.40229731,2645.1,2645.0,793.70804286]
[1769850996923,13.66720837,2645.1,2645.0,791.18481686]
[1769850997124,13.08394893,2645.1,2645.0,791.18481686]
[1769850997322,13.08394893,2645.1,2645.0,790.63481686]
[1769850997525,13.66720837,2645.1,2645.0,790.63481686]
[1769850997727,21.16955127,2645.1,2645.0,753.488633]
[1769850997894,36.60648573,2645.1,2645.0,693.23145636]
[1769850998094,36.60648573,2645.1,2645.0,668.73641944]
[1769850998401,32.24608573,2645.1,2645.0,633.98501947]
[1769850998727,32.24608573,2645.1,2645.0,583.48501947]
[1769850999019,16.79624814,2645.1,2645.0,562.98501947]
[1769850999223,14.52424814,2645.1,2645.0,537.06084491]
[1769850999521,18.05217368,2645.1,2645.0,493.43129276]
[1769850999738,18.82462483,2645.1,2645.0,431.50921693]
[1769850999897,19.10124983,2645.1,2645.0,417.54939812]
[1769851000097,19.10124983,2645.1,2645.0,387.14215101]
[1769851000339,18.82906483,2645.1,2645.0,338.84628462]
[1769851000623,14.54060293,2645.1,2645.0,276.90237859]
[1769851000821,14.30808573,2645.1,2645.0,262.56939822]
[1769851001119,15.44467539,2645.1,2645.0,225.06748752]
[1769851001323,14.30808573,2645.1,2645.0,195.06748752]
[1769851001517,14.30808573,2645.1,2645.0,164.87121849]
[1769851001719,14.30808573,2645.1,2645.0,159.11957682]
[1769851001924,14.30808573,2645.1,2645.0,126.79856838]
[1769851002218,14.30808573,2645.1,2645.0,126.74949232]
[1769851002219,22.07908573,2645.1,2645.0,126.74949232]
[1769851002594,21.84551543,2645.1,2645.0,123.00848359]
[1769851002794,14.07451543,2645.1,2645.0,123.00848359]
[1769851003117,14.07451543,2645.1,2645.0,122.90480359]
[1769851003322,14.07451543,2645.1,2645.0,120.89780359]
[1769851003921,14.07451543,2645.1,2645.0,83.78480359]
[1769851004121,14.07451543,2645.1,2645.0,81.47180359]
[1769851004311,14.07451543,2645.1,2645.0,122.71883545]
[1769851004626,13.87694893,2645.1,2645.0,122.71883545]
[1769851004944,13.409,2645.1,2645.0,78.3624411]
[1769851005129,16.459,2646.0,2645.0,78.3624411]
[1769851005335,6.67535786,2646.6,2645.2,13.11209763]
[1769851005521,6.67535786,2647.0,2645.2,13.11209763]
[1769851006035,0.19745253,2647.0,2645.2,13.11209763]
[1769851006220,0.99045253,2647.0,2645.5,13.11209763]
[1769851006421,5.37214029,2647.0,2645.5,13.11209763]
[1769851006733,30.0,2646.9,2645.5,13.11209763]
[1769851007028,0.28672,2646.9,2645.5,14.50260739]
[1769851008998,6.67634786,2647.8,2645.5,14.50260739]
[1769851009198,0.18432,2647.3,2645.7,13.11209763]
[1769851010220,0.1024,2647.2,2645.7,13.11209763]
[1769851011258,0.18432,2647.3,2645.7,13.11209763]
[1769851011541,0.28672,2647.1,2645.7,13.11209763]
[1769851012115,0.001,2647.0,2645.7,13.11209763]
[1769851012417,0.001,2647.0,2645.9,13.11209763]
[1769851013228,0.1024,2647.6,2646.0,13.11209763]
[1769851013544,0.1024,2647.4,2646.0,13.11209763]
[1769851014146,0.1024,2647.2,2646.0,13.11209763]
[1769851015147,0.1024,2647.5,2646.0,13.11209763]
[1769851015334,0.1024,2647.3,2646.2,13.11209763]
[1769851015735,4.48408776,2647.3,2646.2,13.11209763]
[1769851020751,0.1024,2647.2,2646.2,13.11209763]
[1769851021343,4.38168776,2647.1,2646.2,13.11209763]
[1769851021552,0.1024,2647.0,2646.4,13.11209763]
[1769851022349,4.48408776,2647.0,2646.4,13.11209763]
[1769851022643,0.1024,2646.9,2646.4,13.11209763]
[1769851023856,16.92733786,2647.9,2646.0,13.11209763]
[1769851024053,0.001,2648.2,2646.2,13.11209763]
[1769851024054,4.38168776,2648.1,2646.2,13.11209763]
[1769851024256,4.38168776,2648.1,2646.4,13.11209763]
[1769851024555,4.38168776,2648.1,2646.6,13.11209763]
[1769851024750,4.38168776,2648.1,2646.8,13.11209763]
[1769851025649,0.1024,2648.0,2646.8,13.11209763]
[1769851025849,0.1024,2648.0,2647.0,13.11209763]
[1769851026155,0.1024,2647.8,2647.0,13.11209763]
[1769851028960,0.1024,2647.6,2647.0,13.11209763]
[1769851030226,0.1024,2647.9,2647.0,13.11209763]
[1769851030766,0.1024,2647.7,2647.0,13.11209763]
[1769851031165,0.1024,2647.5,2647.0,13.11209763]
[1769851031533,0.001,2648.2,2647.1,13.72811275]
[1769851031866,4.38168776,2648.1,2647.1,13.72811275]
[1769851033451,0.1024,2648.0,2647.1,13.72811275]
[1769851033849,0.1024,2647.8,2647.1,15.10092403]
[1769851035462,0.001,2648.2,2647.2,13.72811275]
[1769851035669,0.001,2648.4,2647.2,13.72811275]
[1769851036039,0.001,2647.8,2647.2,13.72811275]
[1769851036635,0.001,2648.4,2647.2,13.72811275]
[1769851036831,0.001,2648.4,2647.4,13.72811275]
[1769851037067,0.001,2649.4,2647.4,13.72811275]
[1769851037440,0.1034,2649.4,2647.4,13.72811275]
[1769851038661,11.32532074,2649.4,2647.4,13.72811275]
[1769851040064,0.1034,2649.4,2647.4,13.72811275]
[1769851040450,0.001,2649.4,2647.4,13.72811275]
[1769851041240,0.1024,2649.1,2647.4,13.72811275]
[1769851041468,11.32531074,2649.1,2647.6,13.72811275]
[1769851043643,11.32531074,2649.1,2647.3,13.72811275]
[1769851047484,11.51063074,2649.4,2647.3,13.72811275]
[1769851047651,11.51063074,2649.4,2647.6,13.72811275]
[1769851047841,0.001,2648.9,2647.6,13.72811275]
[1769851048041,0.001,2648.9,2647.8,13.72811275]
[1769851049653,0.1024,2648.8,2647.5,0.0011]
[1769851049853,11.32531074,2648.8,2647.5,13.72921275]
[1769851050784,11.22291074,2648.8,2647.5,13.72921275]
[1769851050984,0.1024,2648.7,2647.5,15.01518665]
[1769851054068,0.001,2648.9,2647.3,0.0011]
[1769851054069,11.32531074,2648.8,2647.3,0.0011]
[1769851055468,11.32531074,2648.8,2647.3,13.72921275]
[1769851059993,11.32531074,2648.8,2647.5,13.00466682]
[1769851060292,0.001,2648.6,2647.5,13.00466682]
[1769851068611,0.001,2648.6,2647.7,13.00356682]
[1769851068795,0.001,2648.6,2647.6,13.79556682]
[1769851080912,0.001,2648.6,2647.7,13.00356682]
[1769851081108,0.001,2648.6,2647.9,13.00356682]
[1769851083343,0.001,2648.6,2647.5,0.0011]
[1769851083344,0.001,2648.6,2647.5,3.8711]
[1769851083503,0.1024,2648.1,2647.5,0.0011]
[1769851084618,0.1024,2647.9,2647.5,0.0011]
[1769851084917,0.1024,2648.1,2647.5,0.0011]
[1769851089949,0.001,2648.4,2647.6,17.20777272]
[1769851090344,0.1024,2648.1,2647.6,3.87]
[1769851091431,0.1024,2648.1,2647.5,0.0011]
[1769851091951,0.001,2648.4,2647.5,13.33887272]
[1769851091952,0.1034,2648.4,2647.5,13.33887272]
[1769851092153,0.1034,2648.4,2647.7,13.33777272]
[1769851093456,0.001,2648.4,2647.7,13.33777272]
[1769851095158,0.001,2648.4,2647.7,13.33887272]
[1769851095561,0.001,2648.2,2647.7,13.33887272]
[1769851097762,0.001,2648.2,2647.7,0.0011]
[1769851097955,0.001,2648.2,2647.7,1.468486]
[1769851098153,0.001,2648.2,2647.7,14.80625872]
[1769851098544,0.001,2648.2,2647.7,13.33887272]
[1769851100875,0.001,2648.2,2647.7,0.0011]
[1769851101366,0.001,2648.2,2647.7,13.33887272]
[1769851103257,0.1034,2648.2,2647.7,0.0011]
[1769851105674,0.1024,2648.1,2647.5,0.0011]
[1769851105881,0.1024,2648.1,2647.5,1.73804247]
[1769851106069,0.1024,2648.1,2647.5,15.07581519]
[1769851106772,0.001,2648.2,2647.5,15.07581519]
[1769851107575,0.001,2648.2,2647.9,0.0011]
[1769851107779,0.001,2648.0,2647.9,0.0011]
[1769851108582,0.001,2648.2,2647.9,0.0011]
[1769851108787,0.001,2648.2,2647.9,13.33887272]
[1769851109350,0.001,2648.4,2648.0,13.33777272]
[1769851110692,0.1034,2648.4,2647.9,0.0011]
[1769851112169,0.001,2648.4,2647.9,0.0011]
[1769851114294,11.88361286,2648.3,2647.6,0.0011]
[1769851114464,11.47153374,2648.3,2647.6,0.0011]
[1769851119191,0.1024,2647.9,2647.3,0.0011]
[1769851120199,0.1024,2647.9,2647.8,0.0011]
[1769851120404,0.1024,2647.9,2647.3,0.0011]
[1769851120706,0.1034,2648.1,2647.5,13.15201262]
[1769851121701,0.001,2648.1,2647.5,13.15201262]
[1769851122811,0.001,2648.4,2647.6,13.15091262]
[1769851126415,0.001,2648.4,2647.7,13.15091262]
[1769851130540,0.1024,2648.1,2647.5,0.0011]
[1769851132517,0.1024,2648.1,2647.7,0.0011]
[1769851132717,0.1034,2648.1,2647.7,0.0011]
[1769851134497,0.001,2648.1,2647.7,0.0011]
[1769851140352,0.1034,2648.1,2647.7,0.0011]
[1769851142045,11.46925674,2648.0,2647.3,0.0011]
[1769851142234,11.88133586,2648.0,2647.3,0.0011]
[1769851142949,11.46925674,2648.0,2647.3,0.0011]
[1769851144660,11.46925674,2647.8,2646.5,13.15201262]
[1769851145031,11.46925674,2647.8,2647.5,0.0011]
[1769851145232,11.46925674,2647.8,2647.3,0.0011]
[1769851145732,0.1024,2647.4,2647.3,0.0011]
[1769851145933,11.46925674,2647.4,2647.3,0.0011]
[1769851146175,0.1024,2647.3,2647.0,1000.0]
[1769851146331,0.1024,2647.3,2647.0,999.99809012]
[1769851148454,0.41207912,2648.0,2647.0,999.99809012]
[1769851148455,11.46925674,2647.1,2647.0,999.43469839]
[1769851148778,11.88133586,2647.1,2647.0,999.32911029]
[1769851148955,11.88133586,2647.1,2647.0,994.11860316]
[1769851149156,11.46925674,2647.1,2647.0,992.55817342]
[1769851149351,11.46925674,2647.1,2647.0,990.23334521]
[1769851149748,11.46925674,2647.1,2647.0,989.90834521]
[1769851149948,11.46925674,2647.1,2647.0,989.24910999]
[1769851150250,11.46925674,2647.1,2647.0,988.79164972]
[1769851150584,11.46925674,2647.1,2647.0,987.94080903]
[1769851150787,11.46925674,2647.1,2647.0,984.67980903]
[1769851150960,11.83297153,2647.1,2647.0,984.57613432]
[1769851151158,11.83297153,2647.1,2647.0,984.2437626]
[1769851151359,11.46925674,2647.1,2647.0,983.88255827]
[1769851151559,11.46925674,2647.1,2647.0,983.67755889]
[1769851151755,11.46925674,2647.1,2647.0,983.27579331]
[1769851152482,0.1024,2647.2,2647.0,983.27579331]
[1769851153087,11.36685674,2647.6,2647.0,983.27579331]
[1769851153264,0.29878223,2648.1,2647.1,5.0]
[1769851153265,0.001,2648.1,2647.1,5.0]
[1769851153466,11.36685674,2648.0,2647.1,5.0]
[1769851154358,11.36685674,2648.0,2647.1,17.7556552]
[1769851154558,0.001,2648.1,2647.1,21.52924011]
[1769851155171,0.1034,2648.1,2647.1,21.52924011]
[1769851156690,0.001,2647.8,2647.1,21.52924011]
[1769851156996,0.001,2647.8,2647.2,0.792]
[1769851158496,0.001,2647.8,2647.2,13.5476552]
[1769851160266,0.001,2647.8,2647.3,5.0]
[1769851162674,0.001,2647.8,2647.2,13.5476552]
[1769851162882,0.001,2647.8,2647.3,5.0]
[1769851163494,0.001,2647.8,2647.3,17.7556552]
[1769851163696,0.001,2647.8,2647.3,5.0]
[1769851164715,0.1024,2647.7,2647.3,5.0]
[1769851164891,11.46925674,2647.7,2647.2,0.792]
[1769851165199,11.46925674,2647.7,2647.0,983.27579331]
[1769851167809,12.12393661,2647.7,2647.0,983.27388359]
[1769851167971,11.46925674,2647.5,2647.0,983.17020497]
[1769851168178,11.46925674,2647.5,2647.0,982.80712226]
[1769851168179,12.12393661,2647.5,2647.0,982.80712226]
[1769851168486,11.46816774,2647.3,2647.0,982.51558603]
[1769851169028,11.46816774,2647.3,2647.0,974.45286022]
[1769851169198,11.46816774,2647.3,2647.0,972.15586022]
[1769851169596,11.46816774,2647.3,2647.0,963.59861867]
[1769851170009,11.46816774,2647.3,2647.0,962.96352834]
[1769851170197,11.46816774,2647.3,2647.0,960.47184973]
[1769851170399,11.46816774,2647.3,2647.0,960.19288757]
[1769851170599,11.46816774,2647.1,2647.0,943.67088757]
[1769851170926,12.25029247,2647.1,2647.0,883.35201623]
[1769851171086,11.87716372,2647.1,2647.0,865.40642128]
[1769851171284,11.87716372,2647.1,2647.0,833.15084416]
[1769851171486,11.87716372,2647.1,2647.0,783.65412696]
[1769851171687,12.13305421,2647.1,2647.0,753.16232696]
[1769851171911,11.87716372,2647.1,2647.0,748.68032696]
[1769851172115,11.87716372,2647.1,2647.0,742.16232696]
[1769851172411,11.65248774,2647.1,2647.0,742.16232696]
[1769851172587,11.84943869,2647.1,2647.0,742.16232696]
[1769851173199,11.84943869,2647.1,2647.0,742.06232696]
[1769851173200,11.74703869,2647.1,2647.0,742.06232696]
[1769851173399,0.19695095,2647.1,2647.0,742.06232696]
[1769851173615,0.001,2647.6,2647.0,742.06232696]
[1769851173798,11.56370163,2647.6,2647.1,30.98875429]
[1769851175420,0.1024,2647.5,2647.1,30.98875429]
[1769851176421,0.1024,2647.4,2647.0,742.06232696]
[1769851176722,0.1024,2647.4,2647.0,773.04289439]
[1769851177023,0.1024,2647.4,2647.0,773.00468036]
[1769851177224,0.1024,2647.4,2647.0,772.99922005]
[1769851179117,0.19793389,2647.6,2647.0,772.99922005]
[1769851180311,0.001,2647.2,2647.0,772.99922005]
[1769851181539,0.001,2647.2,2647.0,742.01046576]
[1769851183020,0.001,2647.2,2647.0,772.99375945]
[1769851187822,0.19793389,2647.6,2647.1,13.43187939]
[1769851188029,0.19793389,2647.6,2647.1,44.41963368]
[1769851189476,0.19793389,2647.6,2647.2,13.43187939]
[1769851189656,0.1034,2647.8,2647.3,13.43187939]
[1769851189829,0.792,2648.0,2647.4,13.43187939]
[1769851191067,0.001,2648.1,2647.6,13.43187939]
[1769851192125,0.4808,2648.0,2647.6,13.43187939]
[1769851195059,11.84656774,2648.0,2647.1,13.43187939]
[1769851195256,11.84656774,2648.0,2647.1,31.4784204]
[1769851195452,11.84656774,2648.0,2647.1,30.6864204]
[1769851195654,11.46816774,2647.8,2647.1,30.6864204]
[1769851195852,0.1024,2647.6,2647.1,30.6635104]
[1769851196164,0.1024,2647.4,2647.0,742.00500516]
[1769851196375,0.44741832,2647.4,2647.0,741.66010269]
[1769851196545,0.1024,2647.4,2647.0,741.4629042]
[1769851196750,0.1024,2647.4,2647.0,741.27379064]
[1769851196957,0.1024,2647.4,2647.0,741.22648028]
[1769851197150,0.1024,2647.4,2647.0,741.09943325]
[1769851197546,0.1024,2647.5,2647.0,740.80898662]
[1769851197751,0.1024,2647.5,2647.0,771.30785442]
[1769851198357,11.46816774,2647.5,2647.0,771.30785442]
[1769851199091,11.46816774,2647.7,2647.0,771.20417442]
[1769851201381,0.1024,2647.8,2647.1,13.43187939]
[1769851201695,0.1024,2647.8,2647.2,13.43187939]
[1769851201872,0.3794,2648.4,2647.3,13.43187939]
[1769851202050,0.3784,2649.1,2648.1,13.43187939]
[1769851202251,0.3784,2649.1,2648.1,14.22387939]
[1769851202477,10.792,2649.7,2648.3,13.43187939]
[1769851202659,0.001,2649.6,2648.4,13.43187939]
[1769851202849,0.001,2649.6,2648.5,0.792]
[1769851203054,0.001,2649.6,2648.5,14.22387939]
[1769851203451,0.001,2649.6,2648.6,30.16297558]
[1769851203848,0.1034,2649.6,2648.7,13.43187939]
[1769851204085,0.001,2649.6,2648.7,13.43187939]
[1769851204279,0.001,2649.6,2648.9,13.43187939]
[1769851204884,0.1034,2649.6,2648.9,13.43187939]
[1769851206609,0.001,2649.6,2649.0,30.16297558]
[1769851207087,0.001,2649.6,2649.0,30.16106558]